bitfinex/quotes_SOLUSD_20251030
["timestamp","ask_amount","ask_price","bid_price","bid_amount"]
[1761859563726,5.7402073,182.55,182.48,5.7402073]
[1761859563919,19.17177913,182.56,182.5,5.7402073]
[1761859563920,5.47765118,182.56,182.5,5.7402073]
[1761859564214,20.592,182.53,182.5,5.7402073]
[1761859564801,20.592,182.53,182.49,5.7402073]
[1761859566129,20.592,182.53,182.49,11.21989171]
[1761859567001,20.592,182.53,182.49,5.7402073]
[1761859567197,5.7402073,182.59,182.52,5.7402073]
[1761859567405,5.7402073,182.53,182.46,11.22086059]
[1761859567627,5.7402073,182.53,182.47,29.23066822]
[1761859567812,20.592,182.56,182.48,5.7402073]
[1761859568012,5.7402073,182.54,182.48,5.7402073]
[1761859568209,5.47795124,182.55,182.48,11.22020039]
[1761859568443,5.7402073,182.54,182.48,11.22020039]
[1761859568843,26.3322073,182.55,182.48,11.22020039]
[1761859569128,20.592,182.55,182.51,5.7402073]
[1761859569505,20.592,182.55,182.5,5.7402073]
[1761859569710,5.7402073,182.57,182.49,9.78882769]
[1761859570028,5.7402073,182.57,182.51,5.7402073]
[1761859570327,26.3322073,182.57,182.51,11.21922455]
[1761859570532,5.7402073,182.56,182.49,5.7402073]
[1761859571101,20.592,182.57,182.51,5.7402073]
[1761859571507,20.592,182.57,182.52,5.7402073]
[1761859571707,20.592,182.57,182.51,5.7402073]
[1761859572010,26.3322073,182.57,182.51,9.78882769]
[1761859572429,31.80981528,182.57,182.51,9.78882769]
[1761859572633,20.592,182.56,182.51,15.26795749]
[1761859572836,5.7402073,182.58,182.52,5.7402073]
[1761859573131,5.47618173,182.61,182.56,5.7402073]
[1761859573315,5.47618173,182.61,182.57,5.7402073]
[1761859573512,11.21605042,182.63,182.56,5.7402073]
[1761859573711,5.47584312,182.63,182.57,5.7402073]
[1761859573917,26.06784312,182.63,182.57,5.7402073]
[1761859574313,26.06784312,182.63,182.58,5.47705115]
[1761859574314,20.592,182.63,182.58,5.47705115]
[1761859574517,20.592,182.63,182.58,11.21725845]
[1761859574719,5.57495392,182.65,182.59,5.7402073]
[1761859574928,26.16695392,182.65,182.59,5.7402073]
[1761859575126,0.1,182.65,182.6,5.7402073]
[1761859575433,20.592,182.64,182.61,5.7402073]
[1761859575635,20.592,182.64,182.59,15.52903499]
[1761859576215,5.57495246,182.65,182.59,15.52903499]
[1761859576426,5.57495246,182.65,182.6,5.7402073]
[1761859577320,5.57495246,182.65,182.6,8.70219416]
[1761859577731,0.1,182.65,182.61,8.70219416]
[1761859577925,0.1,182.65,182.62,8.70219416]
[1761859578333,8.70219416,182.63,182.55,9.78882769]
[1761859578532,5.57497133,182.65,182.52,20.592]
[1761859578533,8.70219416,182.59,182.53,9.78882769]
[1761859578837,8.70219416,182.58,182.53,9.78882769]
[1761859579224,8.70219416,182.57,182.51,5.47909794]
[1761859579425,8.70219416,182.56,182.5,8.70219416]
[1761859579631,8.70219416,182.56,182.51,9.78882769]
[1761859579838,8.70219416,182.57,182.51,18.49102185]
[1761859580029,8.70219416,182.57,182.51,9.78882769]
[1761859580338,8.70219416,182.53,182.47,8.70219416]
[1761859580546,8.70219416,182.53,182.48,9.78882769]
[1761859580840,14.18076165,182.53,182.48,9.78882769]
[1761859581337,8.70219416,182.52,182.47,9.78882769]
[1761859581744,8.70219416,182.48,182.41,20.592]
[1761859581947,8.70219416,182.48,182.41,5.48209709]
[1761859582157,8.70219416,182.46,182.4,14.18241374]
[1761859582440,8.70219416,182.46,182.39,5.48275673]
[1761859582441,8.70219416,182.44,182.39,5.48275673]
[1761859582645,8.70219416,182.44,182.4,9.78882769]
[1761859583471,8.70219416,182.45,182.4,9.78882769]
[1761859583657,8.70219416,182.44,182.39,9.78882769]
[1761859584541,8.70219416,182.44,182.38,14.18523153]
[1761859584542,8.70219416,182.43,182.37,14.18553707]
[1761859584723,20.592,182.53,182.42,18.49102185]
[1761859584916,20.592,182.53,182.38,8.70219416]
[1761859584917,8.70219416,182.44,182.38,8.70219416]
[1761859585523,8.70219416,182.43,182.37,9.78882769]
[1761859585849,8.70219416,182.43,182.37,18.49102185]
[1761859586553,8.70219416,182.42,182.37,15.27213577]
[1761859587341,8.70219416,182.42,182.37,76.97213577]
[1761859587939,8.70219416,182.43,182.37,85.67432993]
[1761859588160,13.70180319,182.46,182.37,85.67432993]
[1761859588330,8.70219416,182.43,182.37,85.67432993]
[1761859589782,8.70219416,182.43,182.37,23.97432993]
[1761859590553,14.18377915,182.43,182.37,15.27213577]
[1761859590759,14.18377915,182.43,182.37,23.97432993]
[1761859591270,8.70219416,182.42,182.37,15.27213577]
[1761859591437,8.70219416,182.43,182.37,23.97432993]
[1761859592434,8.70219416,182.43,182.37,37.68272495]
[1761859592637,8.70219416,182.44,182.38,8.70219416]
[1761859592930,8.70219416,182.44,182.39,5.48275673]
[1761859593131,8.70219416,182.43,182.39,5.48275673]
[1761859594467,8.70219416,182.43,182.38,5.48305735]
[1761859595574,8.70219416,182.43,182.38,14.18525151]
[1761859596175,5.48091548,182.46,182.38,14.18525151]
[1761859596347,20.592,182.45,182.38,14.18525151]
[1761859596546,20.592,182.45,182.41,8.70219416]
[1761859596735,8.70219416,182.46,182.4,8.70219416]
[1761859597380,8.70219416,182.46,182.4,14.18453398]
[1761859597381,14.18285656,182.46,182.4,14.18453398]
[1761859597836,8.70219416,182.45,182.4,14.18453398]
[1761859599361,5.48066616,182.46,182.4,14.18453398]
[1761859599567,8.70219416,182.45,182.4,14.18453398]
[1761859599768,5.48066616,182.46,182.4,8.70219416]
[1761859600068,8.70219416,182.45,182.4,70.40219416]
[1761859600471,19.18229939,182.46,182.39,71.48882769]
[1761859600640,8.70219416,182.44,182.39,71.48882769]
[1761859600841,5.48155456,182.43,182.39,80.19102185]
[1761859602767,13.70163323,182.46,182.4,8.70219416]
[1761859603097,22.40382739,182.46,182.4,8.70219416]
[1761859603465,14.18284745,182.46,182.41,8.70219416]
[1761859603703,27.88448068,182.46,182.4,8.70219416]
[1761859606185,8.70219416,182.44,182.39,80.19102185]
[1761859606502,5.48065329,182.46,182.42,8.70219416]
[1761859606794,5.48042654,182.47,182.43,9.78882769]
[1761859606993,20.592,182.47,182.43,9.78882769]
[1761859607198,8.70219416,182.48,182.43,18.49102185]
[1761859607406,8.70219416,182.49,182.43,18.49102185]
[1761859607604,8.70219416,182.49,182.43,80.19102185]
[1761859607771,14.18222342,182.49,182.43,85.67246203]
[1761859607971,8.70219416,182.48,182.43,80.19102185]
[1761859608203,8.70219416,182.48,182.43,71.48882769]
[1761859608399,14.18222342,182.49,182.43,85.67254167]
[1761859608772,14.18222342,182.49,182.44,8.70219416]
[1761859608973,13.69645271,182.53,182.48,8.70219416]
[1761859609172,13.69645271,182.53,182.49,8.70219416]
[1761859609478,5.47855147,182.53,182.49,8.70219416]
[1761859609878,5.47825134,182.54,182.49,8.70219416]
[1761859610196,5.47825134,182.54,182.49,14.18193357]
[1761859610370,19.17387969,182.54,182.48,70.40219416]
[1761859613216,8.70219416,182.49,182.46,61.7]
[1761859613394,8.70219416,182.49,182.45,9.78882769]
[1761859613694,8.70219416,182.48,182.44,9.78882769]
[1761859613878,8.70219416,182.47,182.44,9.78882769]
[1761859614082,8.70219416,182.47,182.43,61.7]
[1761859615481,5.48065329,182.46,182.43,61.7]
[1761859620681,8.70219416,182.44,182.38,61.7]
[1761859621047,19.18228652,182.46,182.38,61.7]
[1761859621048,8.70219416,182.43,182.38,9.78882769]
[1761859621185,8.70219416,182.44,182.38,18.49102185]
[1761859621380,8.70219416,182.43,182.37,8.70219416]
[1761859621584,8.70219416,182.41,182.37,9.78882769]
[1761859621803,8.70219416,182.42,182.37,9.78882769]
[1761859622001,20.592,182.43,182.36,8.90219416]
[1761859622205,5.48215558,182.41,182.36,8.90219416]
[1761859623181,5.48191345,182.42,182.39,8.70219416]
[1761859624507,19.18618258,182.43,182.39,8.70219416]
[1761859624812,4.09635921,182.42,182.39,8.70219416]
[1761859625515,4.09635921,182.42,182.39,9.78882769]
[1761859626314,4.09635921,182.41,182.39,9.78882769]
[1761859626512,19.18618258,182.43,182.39,9.78882769]
[1761859626714,4.0999622,182.42,182.39,9.78882769]
[1761859628910,5.48215558,182.41,182.39,9.78882769]
[1761859630218,19.18618258,182.43,182.39,9.78882769]
[1761859630416,4.09953894,182.42,182.39,9.78882769]
[1761859631118,12.8017331,182.42,182.36,8.90219416]
[1761859631320,12.80176802,182.41,182.36,8.90219416]
[1761859631508,8.70219416,182.42,182.36,8.90219416]
[1761859631708,4.09964596,182.41,182.36,8.90219416]
[1761859632297,5.48245614,182.4,182.37,8.70219416]
[1761859632720,5.48220768,182.41,182.37,8.70219416]
[1761859633927,42.99882218,182.43,182.37,8.70219416]
[1761859633928,5.48185505,182.42,182.37,9.78882769]
[1761859634104,4.09904291,182.41,182.38,8.70219416]
[1761859634302,5.48185505,182.42,182.39,8.70219416]
[1761859635021,5.48185505,182.42,182.39,9.78882769]
[1761859635406,5.48185505,182.42,182.39,71.48882769]
[1761859635924,5.48185505,182.42,182.39,9.78882769]
[1761859637332,26.07362923,182.43,182.39,9.78882769]
[1761859637536,26.07362923,182.43,182.39,18.49102185]
[1761859639318,26.07362923,182.43,182.39,15.52920676]
[1761859640719,25.57362923,182.43,182.39,15.52920676]
[1761859641404,25.57362923,182.43,182.39,12.04325679]
[1761859641612,5.47945205,182.5,182.43,9.78882769]
[1761859641917,4.09761979,182.49,182.45,2.2544291]
[1761859642119,4.09761979,182.48,182.45,2.2544291]
[1761859642436,4.09761979,182.47,182.46,2.2544291]
[1761859642609,5.4800526,182.48,182.46,2.2544291]
[1761859642814,4.09761979,182.47,182.46,2.2544291]
[1761859643130,5.4800526,182.48,182.46,2.2544291]
[1761859643554,5.47951883,182.5,182.47,2.2544291]
[1761859643711,4.0965308,182.49,182.45,9.78882769]
[1761859643908,4.0965308,182.49,182.47,2.2544291]
[1761859644124,4.0965308,182.49,182.45,25.0590209]
[1761859644324,4.0965308,182.49,182.47,2.2544291]
[1761859645019,4.0965308,182.49,182.48,2.2544291]
[1761859645736,20.592,182.47,182.36,0.2]
[1761859645941,16.44290688,182.49,182.36,0.2]
[1761859645942,2.2544291,182.37,182.36,0.2]
[1761859646236,12.17920385,182.37,182.36,0.2]
[1761859646532,4.0965308,182.37,182.36,0.2]
[1761859646836,5.483358,182.37,182.36,0.2]
[1761859647133,9.5798888,182.37,182.36,0.2]
[1761859647563,4.0965308,182.37,182.36,0.2]
[1761859647733,6.86662377,182.45,182.36,12.24325679]
[1761859647931,6.34922992,182.44,182.38,9.78882769]
[1761859648252,17.79868724,182.43,182.39,2.2544291]
[1761859648432,4.09480082,182.42,182.4,2.2544291]
[1761859648636,5.48215558,182.41,182.38,2.2544291]
[1761859649546,5.48215558,182.41,182.38,5.73995977]
[1761859649751,5.48215558,182.41,182.38,9.78882769]
[1761859649927,5.48215558,182.41,182.38,5.73995977]
[1761859651052,5.73995977,182.41,182.36,0.2]
[1761859651218,5.73995977,182.42,182.36,5.93995977]
[1761859651422,4.09345691,182.41,182.36,5.93995977]
[1761859651626,5.73995977,182.4,182.36,0.2]
[1761859651826,4.09381604,182.39,182.36,0.2]
[1761859652039,5.73995977,182.4,182.36,0.2]
[1761859652435,5.73995977,182.39,182.36,0.2]
[1761859653035,5.48305735,182.38,182.36,0.2]
[1761859653550,5.73995977,182.37,182.36,0.2]
[1761859653750,9.83311169,182.37,182.36,0.2]
[1761859654134,9.83311169,182.37,182.36,1e-08]
[1761859655134,15.31646969,182.37,182.36,1e-08]
[1761859659475,35.90846969,182.37,182.36,1e-08]
[1761859659682,15.31646969,182.37,182.36,1e-08]
[1761859661055,35.90846969,182.37,182.36,1e-08]
[1761859661264,15.31646969,182.37,182.36,1e-08]
[1761859661460,35.90846969,182.37,182.36,1e-08]
[1761859661961,15.31646969,182.37,182.36,1e-08]
[1761859662160,35.90846969,182.37,182.36,1e-08]
[1761859662339,15.31646969,182.37,182.36,1e-08]
[1761859671268,9.57650992,182.37,182.36,1e-08]
[1761859671467,11.83351144,182.37,182.36,1e-08]
[1761859673290,20.592,182.34,182.29,0.2]
[1761859673457,22.84900152,182.3,182.29,0.2]
[1761859673651,22.84900152,182.3,182.2,12.24582921]
[1761859673955,2.25700152,182.26,182.21,16.50119633]
[1761859674263,2.25700152,182.27,182.22,9.78882769]
[1761859674464,2.25700152,182.28,182.22,12.04582921]
[1761859674778,20.592,182.3,182.24,9.78882769]
[1761859674951,22.84900152,182.3,182.2,10.27315083]
[1761859675272,2.25700152,182.29,182.25,9.78882769]
[1761859675675,19.20122887,182.28,182.25,9.78882769]
[1761859677079,19.20122887,182.28,182.24,9.78882769]
[1761859677402,21.45823039,182.28,182.24,9.78882769]
[1761859677580,2.25700152,182.26,182.2,2.45700152]
[1761859677770,2.25700152,182.26,182.21,9.78882769]
[1761859678475,2.25700152,182.26,182.21,71.48882769]
[1761859678790,2.25700152,182.26,182.21,73.74582921]
[1761859679179,2.25700152,182.27,182.21,73.74582921]
[1761859679795,2.25700152,182.25,182.21,71.48882769]
[1761859680201,2.25700152,182.24,182.2,0.2]
[1761859680584,2.25700152,182.25,182.2,0.2]
[1761859680914,2.25700152,182.24,182.2,0.2]
[1761859681279,2.25700152,182.23,182.2,0.2]
[1761859681684,5.4878718,182.22,182.2,0.2]
[1761859683807,19.20438956,182.25,182.2,2.45700152]
[1761859684007,21.46139108,182.25,182.2,2.45700152]
[1761859684386,19.20438956,182.25,182.2,2.45700152]
[1761859685025,7.02402379,182.34,182.23,12.04582921]
[1761859685193,2.25700152,182.34,182.28,2.25700152]
[1761859685507,6.33700818,182.33,182.27,2.25700152]
[1761859685811,5.48516263,182.31,182.27,2.25700152]
[1761859686902,5.48516263,182.31,182.28,2.25700152]
[1761859687410,19.19806921,182.31,182.28,2.25700152]
[1761859688302,19.19806921,182.31,182.27,2.25700152]
[1761859688618,19.19806921,182.31,182.26,2.25700152]
[1761859688792,2.25700152,182.3,182.24,9.28102531]
[1761859689109,2.25700152,182.29,182.24,2.25700152]
[1761859689406,2.25700152,182.3,182.24,2.25700152]
[1761859689609,2.25700152,182.28,182.24,9.78882769]
[1761859690016,2.25700152,182.29,182.24,9.78882769]
[1761859690209,19.19806921,182.31,182.2,61.9]
[1761859690210,5.4878718,182.22,182.2,0.2]
[1761859690383,2.25700152,182.21,182.2,0.2]
[1761859690591,2.25700152,182.23,182.2,0.2]
[1761859691210,2.25700152,182.22,182.2,0.2]
[1761859691517,5.75445942,182.22,182.2,0.2]
[1761859691810,5.75445942,182.21,182.2,0.2]
[1761859692312,11.2426324,182.21,182.2,0.2]
[1761859692501,5.48817298,182.21,182.2,0.2]
[1761859693784,11.2426324,182.21,182.2,0.2]
[1761859694216,5.48817298,182.21,182.2,0.2]
[1761859694595,11.2426324,182.21,182.2,0.2]
[1761859695510,50.80311437,182.21,182.16,0.2]
[1761859695809,5.75445942,182.17,182.16,1e-08]
[1761859695983,9.84607239,182.17,182.16,1e-08]
[1761859696412,15.33545044,182.17,182.16,1e-08]
[1761859699306,15.32598123,182.17,182.16,1e-08]
[1761859701011,11.24383747,182.17,182.16,1e-08]
[1761859701512,14.24123571,182.17,182.16,1e-08]
[1761859701715,18.31969826,182.17,182.16,1e-08]
[1761859701918,5.48937805,182.17,182.16,1e-08]
[1761859702129,14.24123571,182.17,182.16,1e-08]
[1761859702420,34.83323571,182.17,182.16,1e-08]
[1761859713334,29.6152169,182.17,182.16,1e-08]
[1761859714940,20.38553358,182.17,182.16,1e-08]
[1761859715141,28.44685636,182.17,182.16,1e-08]
[1761859715346,24.36743732,182.17,182.16,1e-08]
[1761859716149,16.85169473,182.17,182.16,1e-08]
[1761859717054,9.0232169,182.17,182.16,1e-08]
[1761859725868,13.11300887,182.17,182.16,1e-08]
[1761859726069,9.0232169,182.17,182.16,1e-08]
[1761859726251,5.48937805,182.17,182.16,1e-08]
[1761859726689,4.59672461,182.26,182.16,3.53383886]
[1761859726852,3.53383885,182.23,182.16,3.53383886]
[1761859727178,4.0892511,182.22,182.17,3.53383885]
[1761859727549,24.6812511,182.22,182.17,3.53383885]
[1761859727749,20.592,182.22,182.17,3.53383885]
[1761859727978,5.48817298,182.21,182.16,3.53383886]
[1761859728155,5.48817298,182.21,182.17,3.53383885]
[1761859728459,5.48817298,182.21,182.16,3.53383886]
[1761859728968,5.48817298,182.21,182.17,3.53383885]
[1761859729164,5.48817298,182.21,182.16,3.53383886]
[1761859730869,5.48817298,182.21,182.17,3.53383885]
[1761859731654,5.48817298,182.21,182.17,65.23383885]
[1761859732974,5.48789392,182.22,182.17,65.23383885]
[1761859733155,24.6922949,182.21,182.17,65.23383885]
[1761859733356,20.592,182.21,182.17,65.23383885]
[1761859733700,5.48789392,182.22,182.17,65.23383885]
[1761859733880,4.1002953,182.21,182.17,65.23383885]
[1761859734674,4.1002953,182.21,182.17,61.7]
[1761859734864,5.4884742,182.2,182.17,61.7]
[1761859736369,4.10635561,182.19,182.17,61.7]
[1761859736575,9.02201183,182.21,182.17,61.7]
[1761859736779,4.10639866,182.2,182.17,61.7]
[1761859737155,3.53383885,182.18,182.16,1e-08]
[1761859737375,7.64023751,182.17,182.16,1e-08]
[1761859738088,4.10639866,182.17,182.16,1e-08]
[1761859738265,19.20860544,182.21,182.16,1e-08]
[1761859738266,9.02201183,182.21,182.16,3.53383886]
[1761859738466,5.48817298,182.21,182.16,65.23383886]
[1761859738682,5.48817298,182.21,182.17,3.53383885]
[1761859742461,5.4878718,182.22,182.17,3.53383885]
[1761859742664,5.4878718,182.22,182.17,65.23383885]
[1761859742864,9.02171065,182.22,182.17,65.23383885]
[1761859743165,22.74139015,182.22,182.17,65.23383885]
[1761859743365,22.74139015,182.22,182.17,61.7]
[1761859744189,22.74139015,182.22,182.17,65.23383885]
[1761859744397,19.2075513,182.22,182.17,61.7]
[1761859744568,3.53383885,182.21,182.17,61.7]
[1761859744763,22.74139015,182.22,182.17,65.23383885]
[1761859745379,22.74139015,182.22,182.17,61.7]
[1761859745971,22.74139015,182.22,182.17,65.23383885]
[1761859747273,22.74139015,182.22,182.17,61.7]
[1761859749304,5.4878718,182.22,182.17,65.23383885]
[1761859749618,5.48761122,182.23,182.19,3.53383885]
[1761859749781,5.48699158,182.25,182.21,3.53383885]
[1761859749974,20.592,182.22,182.17,61.7]
[1761859750301,4.11018461,182.21,182.17,65.23383885]
[1761859750501,24.12583885,182.22,182.17,65.23383885]
[1761859750798,24.12583885,182.22,182.17,61.7]
[1761859751601,5.48817298,182.21,182.17,61.7]
[1761859752691,5.48817298,182.21,182.17,65.23383885]
[1761859753490,26.07991783,182.22,182.17,65.23383885]
[1761859754404,26.07991783,182.22,182.17,3.53383885]
[1761859754806,26.07991783,182.22,182.18,3.53383885]
[1761859754999,26.07991783,182.22,182.17,5.48934275]
[1761859755000,20.592,182.22,182.21,3.53383885]
[1761859755194,5.48722237,182.25,182.21,3.53383885]
[1761859755390,5.48722237,182.25,182.22,3.53383885]
[1761859755591,5.48722237,182.25,182.21,65.23383885]
[1761859755788,19.20464349,182.25,182.21,65.23383885]
[1761859756091,19.20464349,182.25,182.21,61.7]
[1761859757003,19.20464349,182.25,182.21,65.23383885]
[1761859757396,5.48722237,182.25,182.21,65.23383885]
[1761859757593,26.07874831,182.26,182.21,65.23383885]
[1761859758008,26.07874831,182.26,182.22,3.53383885]
[1761859759204,26.07874831,182.26,182.22,65.23383885]
[1761859759395,26.07873554,182.26,182.23,3.53383885]
[1761859759814,26.07873554,182.26,182.22,65.23383885]
[1761859761597,26.07873554,182.26,182.23,3.53383885]
[1761859763324,26.07873554,182.26,182.23,2.2582881]
[1761859763995,20.592,182.26,182.23,2.2582881]
[1761859764193,7.04558894,182.28,182.23,2.2582881]
[1761859764414,5.48662678,182.27,182.23,2.2582881]
[1761859765417,12.53174181,182.28,182.23,2.2582881]
[1761859766210,12.53174181,182.28,182.23,63.9582881]
[1761859766397,12.53174181,182.28,182.23,61.7]
[1761859766398,2.2582881,182.27,182.23,61.7]
[1761859768124,5.48666739,182.26,182.23,61.7]
[1761859771274,22.8502881,182.24,182.23,61.7]
[1761859772027,20.592,182.24,182.18,2.2582881]
[1761859772228,20.592,182.24,182.18,7.74734077]
[1761859772721,5.48757065,182.23,182.18,2.2582881]
[1761859775146,2.2582881,182.22,182.17,61.7]
[1761859777342,5.48817298,182.21,182.17,61.7]
[1761859779069,19.20649728,182.23,182.17,61.7]
[1761859779230,2.2582881,182.22,182.17,61.7]
[1761859780139,2.2582881,182.2,182.17,61.7]
[1761859780438,2.2582881,182.21,182.17,61.7]
[1761859781023,2.2582881,182.19,182.16,1e-08]
[1761859781246,22.8502881,182.2,182.16,1e-08]
[1761859782525,7.74706355,182.19,182.16,1e-08]
[1761859783860,2.2582881,182.21,182.16,9.7888277]
[1761859784164,36.57005984,182.22,182.17,2.4582881]
[1761859784963,5.48825833,182.21,182.17,2.4582881]
[1761859785342,7.74654643,182.21,182.17,2.4582881]
[1761859786439,5.48825833,182.21,182.17,2.4582881]
[1761859786648,7.74654643,182.21,182.17,64.1582881]
[1761859788047,2.2582881,182.2,182.17,64.1582881]
[1761859788250,2.2582881,182.2,182.17,61.7]
[1761859789270,2.2582881,182.19,182.17,61.7]
[1761859789555,5.48865564,182.2,182.17,61.7]
[1761859789556,2.2582881,182.18,182.17,61.7]
[1761859790364,7.74736483,182.18,182.17,61.7]
[1761859792463,7.74736483,182.18,182.16,61.70000001]
[1761859792658,2.2582881,182.17,182.16,61.70000001]
[1761859793849,7.74736483,182.18,182.16,61.70000001]
[1761859794168,5.48907673,182.18,182.16,61.70000001]
[1761859794366,20.592,182.22,182.17,12.04711579]
[1761859794752,20.592,182.22,182.18,12.04711579]
[1761859794951,20.592,182.21,182.18,12.04711579]
[1761859796458,20.592,182.21,182.18,14.30540389]
[1761859796970,5.48763286,182.23,182.19,2.2582881]
[1761859797473,5.48763286,182.23,182.19,15.97646193]
[1761859798276,19.20544336,182.24,182.19,15.97646193]
[1761859798976,22.8502881,182.25,182.2,2.2582881]
[1761859798977,5.48704214,182.25,182.2,2.2582881]
[1761859799283,26.07904214,182.25,182.2,18.23475003]
[1761859799867,26.07904214,182.25,182.21,16.50301179]
[1761859800172,7.04558894,182.28,182.21,83.69108727]
[1761859800375,7.04558894,182.28,182.22,12.04711579]
[1761859800376,2.2582881,182.28,182.22,12.04711579]
[1761859800566,2.2582881,182.26,182.21,61.7]
[1761859800773,2.2582881,182.26,182.22,5.48546352]
[1761859800956,2.2582881,182.24,182.22,5.48546352]
[1761859801156,2.2582881,182.26,182.2,2.2582881]
[1761859801395,2.2582881,182.24,182.2,16.50391968]
[1761859801684,2.2582881,182.24,182.18,63.9582881]
[1761859801969,2.2582881,182.23,182.19,16.50482766]
[1761859802184,2.2582881,182.23,182.17,2.2582881]
[1761859802383,5.4878718,182.22,182.18,16.50573574]
[1761859802983,7.7461599,182.22,182.16,73.7471158]
[1761859803145,2.2582881,182.21,182.17,13.71792879]
[1761859803961,2.2582881,182.21,182.16,1e-08]
[1761859804162,5.4884742,182.2,182.16,13.7179288]
[1761859805260,5.4884742,182.2,182.16,1e-08]
[1761859805866,7.7467623,182.2,182.16,1e-08]
[1761859806076,7.7467623,182.2,182.17,0.7]
[1761859806972,7.7467623,182.2,182.16,13.71792881]
[1761859807155,7.7467623,182.2,182.17,0.7]
[1761859808389,5.4884742,182.2,182.17,0.7]
[1761859809096,13.71972708,182.22,182.17,0.7]
[1761859809097,2.2582881,182.19,182.17,0.7]
[1761859809270,20.592,182.23,182.17,0.7]
[1761859809271,20.592,182.2,182.17,0.7]
[1761859810296,26.08067403,182.2,182.17,0.7]
[1761859813070,26.08067403,182.2,182.17,62.4]
[1761859813376,28.33896213,182.2,182.17,62.4]
[1761859813583,28.33896213,182.2,182.18,17.20846058]
[1761859814077,28.33896213,182.2,182.18,0.7]
[1761859814277,28.33896213,182.2,182.19,16.50846058]
[1761859814909,42.06014764,182.2,182.16,1e-08]
[1761859815096,28.33966615,182.17,182.16,1e-08]
[1761859815713,26.08137805,182.17,182.16,0.72000001]
[1761859815876,28.33966615,182.17,182.16,0.72000001]
[1761859817898,28.33966615,182.17,182.16,1e-08]
[1761859819996,28.33966615,182.17,182.16,0.72000001]
[1761859820295,28.33966615,182.17,182.16,2.92161269]
[1761859820497,28.33966615,182.17,182.16,0.72000001]
[1761859821289,28.33966615,182.17,182.16,1e-08]
[1761859822095,28.33966615,182.17,182.16,0.72000001]
[1761859824278,28.33966615,182.17,182.16,3.02161269]
[1761859825093,28.33966615,182.17,182.16,0.72000001]
[1761859825395,29.61514209,182.17,182.16,0.72000001]
[1761859826392,29.61514209,182.17,182.16,1e-08]
[1761859826595,29.61514209,182.17,182.11,0.2]
[1761859826596,20.592,182.13,182.11,0.2]
[1761859826795,7.95521657,182.12,182.11,0.2]
[1761859827107,7.04752717,182.12,182.11,0.92]
[1761859827290,10.58129121,182.12,182.11,0.92]
[1761859827700,10.58129121,182.12,182.11,0.2]
[1761859828211,10.58129121,182.12,182.11,0.92]
[1761859828416,10.58129121,182.12,182.11,0.2]
[1761859828717,16.07217634,182.12,182.11,0.2]
[1761859830517,12.5384123,182.12,182.11,0.92]
[1761859830720,16.07217634,182.12,182.11,0.2]
[1761859832602,61.78882768,182.11,182.1,0.2]
[1761859832801,57.93657679,182.1,182.06,1e-08]
[1761859833001,37.44835577,182.07,182.05,1e-08]
[1761859833305,28.27806953,182.06,182.05,1e-08]
[1761859833696,28.27806953,182.06,182.0,0.72]
[1761859833697,3.53376404,182.01,182.0,0.72]
[1761859834616,9.02796765,182.01,182.0,0.72]
[1761859834823,20.592,181.99,181.98,0.72]
[1761859834999,24.12576404,181.99,181.98,0.72]
[1761859835190,24.12576404,181.99,181.94,6.89098999]
[1761859835390,24.12576404,181.99,181.98,0.72]
[1761859835391,20.592,181.99,181.98,0.72]
[1761859836607,43.35758995,181.99,181.96,0.72]
[1761859836914,3.53376404,181.97,181.96,0.72]
[1761859837301,20.592,181.95,181.94,7.61098999]
[1761859837508,24.12576404,181.95,181.94,7.61098999]
[1761859837705,39.08124184,181.95,181.94,6.89098999]
[1761859838611,44.57725722,181.95,181.94,6.89098999]
[1761859839425,44.57725722,181.95,181.94,7.61098999]
[1761859839725,41.04349318,181.95,181.94,7.61098999]
[1761859840023,44.57725722,181.95,181.94,7.61098999]
[1761859840899,44.57725722,181.95,181.94,6.89098999]
[1761859841204,7.60747783,181.94,181.92,0.1]
[1761859841397,3.53376404,181.93,181.92,0.1]
[1761859841826,3.53376404,181.93,181.87,0.72]
[1761859841827,20.592,181.9,181.87,0.72]
[1761859842023,3.53376404,181.88,181.87,0.72]
[1761859843130,9.03189467,181.88,181.87,0.72]
[1761859844297,9.03189467,181.88,181.77,20.592]
[1761859844298,20.592,181.85,181.78,5.50089658]
[1761859844497,3.53376404,181.81,181.78,5.50089658]
[1761859844918,3.53376404,181.82,181.79,17.26122901]
[1761859845329,3.53376404,181.82,181.8,0.72]
[1761859845624,3.53376404,181.81,181.8,0.72]
[1761859846313,3.53376404,181.82,181.8,0.72]